bitfinex/quotes_ETHUSD_20220305
["timestamp","ask_amount","ask_price","bid_price","bid_amount"]
[1646471033999,3.28882,2646.9,2646.6,0.01107114]
[1646471035238,0.92558078,2646.8,2646.6,0.01107114]
[1646471035442,17.30708187,2646.8,2646.6,0.01107114]
[1646471035639,13.88328678,2646.8,2646.6,0.01107114]
[1646471036042,12.56,2646.7,2646.6,0.01107114]
[1646471036239,12.56,2646.7,2646.3,0.00299527]
[1646471036240,11.56,2646.5,2646.3,0.00299527]
[1646471036441,12.012,2646.4,2645.9,0.04856767]
[1646471036840,12.012,2646.4,2646.1,0.02915765]
[1646471037041,11.56,2646.2,2646.1,0.02915765]
[1646471037244,12.98152162,2646.2,2646.1,0.02915765]
[1646471037442,13.98152162,2646.2,2646.1,0.02915765]
[1646471037640,14.98152162,2646.2,2646.1,0.0239768]
[1646471038579,14.95786,2646.2,2646.1,0.0239768]
[1646471039380,2.452,2646.2,2646.1,0.0239768]
[1646471039879,14.012,2646.2,2646.1,0.0239768]
[1646471040282,1.0,2646.2,2646.1,0.0239768]
[1646471040482,0.452,2646.6,2646.1,0.0239768]
[1646471040781,1.0,2646.5,2646.1,0.0239768]
[1646471041580,1.0,2646.5,2646.2,0.00284911]
[1646471042426,0.11917017,2646.7,2646.2,0.00284911]
[1646471042626,0.11917017,2646.7,2646.1,1.14349319]
[1646471042828,0.11917017,2646.7,2646.2,0.00284909]
[1646471043627,0.09282502,2646.7,2646.2,0.00284909]
[1646471043830,0.09282502,2646.7,2646.1,1.52069319]
[1646471044028,0.09282502,2646.7,2646.5,1.19557329]
[1646471044227,0.09282502,2646.7,2646.5,1.57277329]
[1646471044430,0.3551,2647.1,2646.6,8.6772]
[1646471044628,0.3551,2647.1,2647.0,0.01236952]
[1646471044629,0.0001,2647.1,2647.0,0.01236952]
[1646471044828,0.0001,2647.1,2647.0,0.38956952]
[1646471045027,0.0001,2647.1,2647.0,3.88956952]
[1646471045432,0.0001,2647.1,2647.0,0.3772]
[1646471045631,0.0001,2647.1,2646.8,0.00271537]
[1646471045832,0.0001,2647.1,2646.8,0.00571209]
[1646471046284,0.0001,2647.1,2646.8,0.00299672]
[1646471046488,0.0001,2647.1,2646.8,3.50571202]
[1646471046685,0.0001,2647.1,2646.8,3.88291202]
[1646471047385,0.0001,2647.1,2646.8,3.88019672]
[1646471047784,0.0001,2647.1,2646.8,3.88291202]
[1646471048384,0.0001,2647.1,2646.8,0.38291202]
[1646471048585,0.0001,2647.1,2646.8,3.88019672]
[1646471048988,0.0001,2647.1,2646.8,3.88292154]
[1646471049487,0.0001,2647.1,2646.9,0.1092977]
[1646471049488,0.09560383,2647.0,2646.9,0.1092977]
[1646471049689,0.09560383,2647.0,2646.9,3.9864977]
[1646471050138,0.09560383,2647.0,2646.9,4.9864977]
[1646471050935,0.09560383,2647.0,2646.9,5.86538736]
[1646471053138,0.09560383,2647.0,2646.9,2.36538736]
[1646471053337,0.09560383,2647.0,2646.9,1.36538736]
[1646471053780,0.06703215,2647.0,2646.9,1.36538736]
[1646471054381,0.11206185,2647.0,2646.9,1.32486856]
[1646471055581,0.11206185,2647.0,2646.9,1.40229194]
[1646471056287,0.11206185,2647.0,2646.9,1.40229475]
[1646471056486,0.11206185,2647.0,2646.9,0.52340509]
[1646471056690,0.11206185,2647.0,2646.9,0.4459789]
[1646471057524,0.11206185,2647.0,2646.9,0.0687789]
[1646471057724,0.11206185,2647.0,2646.9,0.14620589]
[1646471058124,0.11206185,2647.0,2646.9,1.56315649]
[1646471060533,0.11206185,2647.0,2646.9,1.56215649]
[1646471060935,0.11206185,2647.0,2646.9,0.52240589]
[1646471061182,0.11206185,2647.0,2646.9,0.14520589]
[1646471062182,0.11206185,2647.0,2646.9,1.74636547]
[1646471064185,0.11206185,2647.0,2646.9,0.14520589]
[1646471064939,0.11206185,2647.0,2646.9,0.0677789]
[1646471065743,0.11206185,2647.0,2646.9,0.14521091]
[1646471073827,0.10085567,2647.0,2646.9,0.14521091]
[1646471074732,0.10085567,2647.0,2646.9,0.0677789]
[1646471076183,3.60085567,2647.0,2646.8,0.00284821]
[1646471076383,1.4630271,2646.9,2646.5,0.00299713]
[1646471076583,1.4630271,2646.9,2646.8,0.00272859]
[1646471077488,1.4630271,2646.9,2646.3,0.19169713]
[1646471079947,1.4630271,2646.9,2646.3,0.00299713]
[1646471080139,1.4630271,2646.9,2646.5,0.00293362]
[1646471081142,1.4630271,2646.9,2646.5,0.07850589]
[1646471081344,1.4630271,2646.9,2646.6,0.00293357]
[1646471082444,1.4630271,2646.9,2646.3,0.00299713]
[1646471082445,2.4413525,2646.9,2646.3,0.00299713]
[1646471082646,2.4413525,2646.9,2646.6,0.00293355]
[1646471082647,1.4630271,2646.8,2646.6,0.00293355]
[1646471082842,1.4630271,2646.7,2646.6,0.00293355]
[1646471083443,0.9783254,2646.9,2646.3,0.00299713]
[1646471083444,1.4630271,2646.8,2646.3,0.00299713]
[1646471083690,1.4630271,2646.7,2646.1,7.4939768]
[1646471083895,1.4630271,2646.6,2646.5,0.0029336]
[1646471084090,1.4630271,2646.8,2646.5,0.0029336]
[1646471084490,1.53452747,2646.8,2646.5,0.0029336]
[1646471084691,1.53452747,2646.8,2646.3,0.08139051]
[1646471084692,1.4630271,2646.7,2646.3,0.08139051]
[1646471084893,1.4630271,2646.7,2646.3,0.07839338]
[1646471085092,1.4630271,2646.7,2646.5,0.00283459]
[1646471085897,1.4630271,2646.7,2646.3,0.07839338]
[1646471086094,1.4630271,2646.7,2646.2,0.00299713]
[1646471086296,1.4630271,2646.7,2646.5,0.00283461]
[1646471087098,1.4630271,2646.7,2646.2,0.00299713]
[1646471087324,0.87623717,2646.4,2646.2,0.07855188]
[1646471087624,1.4630271,2646.3,2646.1,7.50531694]
[1646471088324,1.4630271,2646.3,2646.1,0.0239768]
[1646471088526,2.6195271,2646.3,2646.1,0.0239768]
[1646471088724,1.4630271,2646.2,2646.1,0.02668976]
[1646471089635,1.4630271,2646.2,2646.1,0.0239768]
[1646471093779,0.01877513,2646.0,2645.8,0.06076673]
[1646471093977,0.01877513,2646.0,2645.9,0.014596]
[1646471094178,1.04024542,2646.6,2645.9,0.014596]
[1646471094478,1.45664344,2646.5,2645.9,0.014596]
[1646471094680,1.45664344,2646.5,2646.0,0.07969323]
[1646471094927,0.29649503,2646.2,2646.0,0.07969323]
[1646471096333,0.29649503,2646.2,2646.0,0.09428923]
[1646471096532,0.29649503,2646.2,2646.0,0.014596]
[1646471098981,1.45644729,2646.1,2646.0,0.014596]
[1646471099381,1.45644729,2646.1,2645.9,0.00272095]
[1646471099783,1.52214678,2646.1,2645.9,0.00272095]
[1646471099982,1.45644729,2646.0,2645.9,0.00272095]
[1646471100383,1.45644729,2646.0,2645.8,0.0577696]
[1646471100582,1.45644729,2646.0,2645.8,0.06049051]
[1646471101584,1.45644729,2646.0,2645.8,0.0577696]
[1646471101785,1.45644729,2646.0,2645.8,0.06049053]
[1646471102627,0.06569949,2646.1,2645.8,0.06049053]
[1646471102829,0.06569949,2646.1,2645.8,0.0577696]
[1646471103030,0.06569949,2646.1,2645.9,0.97101815]
[1646471103329,0.06569949,2646.1,2645.8,0.06049083]
[1646471103930,0.06569949,2646.1,2645.9,0.07994144]
[1646471104531,0.13032847,2646.0,2645.9,1.0230582]
[1646471106691,0.13032847,2646.0,2645.9,0.9730582]
[1646471106892,0.13032847,2646.0,2645.9,4.4730582]
[1646471107293,0.13032847,2646.0,2645.9,4.8502582]
[1646471107692,0.13032847,2646.0,2645.9,4.4730582]
[1646471108492,0.13032847,2646.0,2645.9,0.9730582]
[1646471108695,0.13032847,2646.0,2645.9,0.02994144]
[1646471109094,0.20539855,2646.0,2645.9,0.02994144]
[1646471109394,0.20539855,2646.0,2645.8,0.06049076]
[1646471110033,0.20539855,2646.0,2645.8,0.0577696]
[1646471110234,0.20539855,2646.0,2645.8,0.06049079]
[1646471111241,0.20539855,2646.0,2645.8,0.0577696]
[1646471111435,0.20539855,2646.0,2645.8,0.06049079]
[1646471112437,0.20539855,2646.0,2645.8,0.0577696]
[1646471112636,0.20539855,2646.0,2645.8,0.06049079]
[1646471113681,0.20539855,2646.0,2645.8,1.25730235]
[1646471113886,0.1764831,2646.0,2645.8,1.26002354]
[1646471114284,0.1764831,2646.0,2645.8,2.08922354]
[1646471114285,0.11364413,2646.0,2645.8,2.08922354]
[1646471114491,0.03565246,2646.1,2646.0,5.1772]
[1646471114787,0.03565246,2646.1,2646.0,10.3181]
[1646471114986,0.03565246,2646.1,2646.0,11.4938]
[1646471115188,0.03565246,2646.1,2646.0,7.9938]
[1646471115889,0.03565246,2646.1,2646.0,7.8049]
[1646471119129,0.16225636,2646.1,2646.0,7.8049]
[1646471121080,0.16225636,2646.1,2646.0,2.6277]
[1646471121284,0.16225636,2646.1,2646.0,1.6277]
[1646471121482,0.16225636,2646.1,2646.0,0.452]
[1646471121684,0.16225636,2646.1,2645.9,0.29261257]
[1646471121982,0.16225636,2646.1,2645.9,0.28989139]
[1646471122182,0.16225636,2646.1,2645.9,0.29261257]
[1646471123182,0.16225636,2646.1,2645.9,0.28989139]
[1646471123382,0.16225636,2646.1,2645.9,0.29261254]
[1646471124384,0.16225636,2646.1,2645.9,0.28993362]
[1646471124583,0.16225636,2646.1,2645.9,0.29265477]
[1646471125629,0.16225636,2646.1,2645.9,0.28993362]
[1646471125831,0.16225636,2646.1,2645.9,0.29265477]
[1646471126737,0.16225636,2646.1,2646.0,0.07844888]
[1646471126934,0.16225636,2646.1,2646.0,0.53044888]
[1646471128795,0.16225636,2646.1,2646.0,0.15191222]
[1646471129195,1.62656766,2646.1,2646.0,0.15191222]
[1646471130404,1.62656766,2646.1,2646.0,0.710235]
[1646471133930,1.62689908,2646.1,2646.0,0.90082748]
[1646471134129,0.16225636,2646.1,2646.0,0.90082748]
[1646471134329,1.6268958,2646.1,2646.0,0.90082748]
[1646471134532,0.16225636,2646.1,2646.0,0.90082748]
[1646471134729,1.62696133,2646.1,2646.0,0.90082748]
[1646471134931,0.16225636,2646.1,2646.0,0.90082748]
[1646471135128,1.62698328,2646.1,2646.0,0.90082748]
[1646471135329,0.16225636,2646.1,2646.0,0.90082748]
[1646471135929,1.62697817,2646.1,2646.0,0.90082748]
[1646471136186,1.62696568,2646.1,2646.0,0.90082748]
[1646471136387,0.16225636,2646.1,2646.0,0.90082748]
[1646471136585,1.62696528,2646.1,2646.0,0.90082748]
[1646471136786,0.16225636,2646.1,2646.0,0.90082748]
[1646471137386,1.62742739,2646.1,2646.0,0.90082748]
[1646471137586,0.16225636,2646.1,2646.0,0.90082748]
[1646471137787,1.62744767,2646.1,2646.0,0.90082748]
[1646471137988,0.16225636,2646.1,2646.0,0.90082748]
[1646471138186,1.62744602,2646.1,2646.0,0.90082748]
[1646471138387,0.16225636,2646.1,2646.0,0.90082748]
[1646471138587,1.62746098,2646.1,2646.0,0.90082748]
[1646471138790,0.16225636,2646.1,2646.0,0.90082748]
[1646471138990,0.14570573,2646.1,2646.0,0.90082748]
[1646471139390,0.14570573,2646.1,2646.0,0.9805046]
[1646471139591,1.61130467,2646.1,2646.0,1.4325046]
[1646471142934,0.26490467,2646.1,2646.0,1.4325046]
[1646471143134,0.69112192,2646.8,2646.0,1.4325046]
[1646471143335,0.69112192,2646.8,2646.0,1.35405572]
[1646471144390,0.11755924,2646.1,2646.0,1.2462326]
[1646471144591,0.11755924,2646.1,2646.0,0.7942326]
[1646471144789,0.09718124,2646.1,2646.0,0.7942326]
[1646471149237,0.80613391,2646.6,2646.0,0.68272733]
[1646471149639,0.11501199,2646.6,2646.0,0.68272733]
[1646471150441,0.06163199,2646.6,2646.0,0.52082733]
[1646471151093,0.25712391,2646.7,2646.0,0.52082733]
[1646471151686,0.08535391,2646.7,2646.0,0.52082733]
[1646471151885,0.08535391,2646.7,2646.1,0.91889988]
[1646471151886,0.01373391,2646.7,2646.1,0.91889988]
[1646471152485,0.01373391,2646.7,2646.0,0.53996733]
[1646471152890,4.42173796,2646.8,2646.0,0.53996733]
[1646471153087,2.1948981,2647.2,2646.0,0.53996733]
[1646471153088,0.92173796,2646.6,2646.0,0.53996733]
[1646471153588,0.92173796,2646.7,2646.0,0.53996733]
[1646471154387,0.92173796,2646.6,2646.0,0.53996733]
[1646471154589,0.11643348,2646.5,2646.1,0.21427175]
[1646471155033,0.11643348,2646.5,2646.1,0.23341175]
[1646471159687,0.92173796,2647.0,2646.4,0.0536066]
[1646471160087,0.92173796,2646.9,2646.4,0.01914]
[1646471162093,0.6958463,2646.6,2646.4,0.01914]
[1646471162931,1.50350651,2647.1,2646.5,0.1152543]
[1646471162932,0.92173796,2646.8,2646.5,0.1152543]
[1646471163235,0.92173796,2646.8,2646.5,0.1343943]
[1646471163431,0.92173796,2646.8,2646.5,0.01914]
[1646471163632,0.69589386,2646.6,2646.5,0.01914]
[1646471163832,2.35266583,2646.8,2646.5,0.13442211]
[1646471164035,1.43092787,2646.7,2646.5,0.01914]
[1646471164235,0.92173796,2646.7,2646.6,0.20556438]
[1646471164635,2.35295777,2646.7,2646.6,0.20556438]
[1646471165235,2.35295777,2646.7,2646.6,0.22470438]
[1646471165434,0.92173796,2646.7,2646.6,0.22470438]
[1646471165635,1.43120018,2646.7,2646.6,0.33996989]
[1646471165837,1.43120018,2646.7,2646.6,0.22470438]
[1646471166089,4.8,2646.6,2646.1,0.0108779]
[1646471166293,1.19928453,2646.2,2646.1,0.0108779]
[1646471166494,0.92826543,2646.2,2645.8,0.0577696]
[1646471166689,0.69623294,2645.9,2645.8,0.0577696]
[1646471166889,4.42826543,2646.0,2645.8,0.0577696]
[1646471167090,0.92826543,2646.0,2645.8,0.0577696]
[1646471167490,0.92826543,2645.9,2645.8,0.0577696]
[1646471167890,5.3304989,2645.9,2645.7,0.03263243]
[1646471168095,0.90223347,2645.9,2645.7,0.03263243]
[1646471168292,1.82818595,2645.9,2645.7,0.03263243]
[1646471168495,4.8,2645.8,2645.6,9.373e-05]
[1646471168692,8.3,2645.8,2645.6,9.373e-05]
[1646471168892,5.72595248,2645.8,2645.6,9.373e-05]
[1646471169092,5.72595248,2645.8,2645.6,0.00301169]
[1646471169093,0.92595248,2645.8,2645.6,0.00301169]
[1646471169293,3.5,2645.9,2645.6,0.00301169]
[1646471169294,0.6944608,2645.7,2645.6,0.00301169]
[1646471170138,0.6944608,2645.7,2645.6,9.373e-05]
[1646471171342,0.6944608,2645.8,2645.6,9.373e-05]
[1646471172841,0.6944608,2645.7,2645.6,0.00301169]
[1646471173042,0.92595248,2645.8,2645.6,1.169e-05]
[1646471173243,0.92595248,2645.7,2645.6,1.169e-05]
[1646471173687,0.92595248,2645.7,2645.5,0.0449421]
[1646471174086,4.8,2645.5,2645.3,0.0145381]
[1646471174485,5.49254493,2645.5,2645.3,0.0145381]
[1646471175288,8.3,2645.5,2645.3,0.0145381]
[1646471175689,4.8,2645.5,2645.3,0.0145381]
[1646471176088,8.3,2645.5,2645.3,0.0145381]
[1646471176590,5.72595248,2645.5,2645.3,0.0145381]
[1646471176792,4.8,2645.4,2645.3,0.0145381]
[1646471177438,5.49137737,2645.4,2645.3,0.0145381]
[1646471178039,4.8,2645.4,2645.3,0.0145381]
[1646471178843,8.3,2645.4,2645.3,0.0145381]
[1646471179242,4.8,2645.4,2645.3,0.0145381]
[1646471179441,8.3,2645.4,2645.3,0.0145381]
[1646471179642,4.8,2645.4,2645.3,0.0145381]
[1646471180142,0.46582333,2644.6,2644.5,0.25]
[1646471180342,0.46582333,2644.6,2644.5,0.03000768]
[1646471180542,0.46582333,2644.6,2644.3,0.01211098]
[1646471182192,0.46582333,2644.6,2643.6,0.25]
[1646471182193,8.3,2644.5,2643.6,0.25]
[1646471182392,8.3,2644.5,2644.3,0.00281607]
[1646471182393,9.2464,2644.5,2644.3,0.00281607]
[1646471182592,9.2464,2644.5,2643.6,0.25]
[1646471182593,4.8,2644.3,2643.6,0.21128205]
[1646471182792,4.8,2644.3,2643.5,0.014465]
[1646471183194,1.8932296,2644.1,2643.5,0.014465]
[1646471183392,1.1328,2644.4,2643.5,0.014465]
[1646471184293,0.46582333,2644.6,2643.9,1.06047698]
[1646471184493,0.46582333,2644.6,2643.9,1.89265958]
[1646471184494,0.04989774,2644.5,2643.9,1.89265958]
[1646471184694,0.04989774,2644.5,2643.9,1.88967698]
[1646471185138,0.04989774,2644.5,2643.9,13.44967698]
[1646471185338,0.04989774,2644.5,2643.9,14.39541328]
[1646471185540,4.1176,2645.6,2644.3,0.3772]
[1646471185739,4.1176,2645.6,2644.5,0.3772]
[1646471185740,2.3965,2645.6,2644.5,0.3772]
[1646471186039,2.5709,2645.7,2644.7,0.3772]
[1646471186241,1.50607946,2645.6,2644.8,4.3292]
[1646471186444,1.2103,2645.8,2644.8,0.8292]
[1646471186645,1.50641447,2645.7,2645.0,0.9718714]
[1646471186844,1.50641447,2645.7,2645.0,0.974854]
[1646471187042,0.00167166,2645.4,2645.0,0.974854]
[1646471187246,0.00167166,2645.4,2645.0,0.9718714]
[1646471187442,0.00167166,2645.4,2645.0,1.3490714]
[1646471187642,0.00167166,2645.4,2645.1,3.5]
[1646471187843,0.00167166,2645.4,2645.2,0.3772]
[1646471188043,1.50638414,2646.0,2645.3,3.8772]
[1646471188243,0.00167166,2645.4,2645.3,3.8772]
[1646471188443,0.00167166,2645.4,2645.3,3.8801826]
[1646471188688,0.00167166,2645.4,2645.3,5.43757561]
[1646471188889,0.00167166,2645.4,2645.3,17.99757561]
[1646471189289,5.00620144,2646.4,2645.0,0.0029826]
[1646471189490,0.13736018,2645.5,2645.0,0.0029826]
[1646471189689,0.14026501,2645.5,2645.0,0.0029826]
[1646471189890,0.14026501,2645.5,2644.9,1.2072]
[1646471190388,0.14026501,2645.5,2645.0,0.92428411]
[1646471190588,0.14026501,2645.5,2644.9,1.2072]
[1646471190589,0.13736018,2645.5,2644.9,1.2101826]
[1646471190792,0.0029049,2645.3,2644.9,1.2072]
[1646471190988,0.0029049,2645.3,2644.7,0.0029826]
[1646471191191,0.0029049,2645.3,2644.6,5.082]
[1646471191793,0.13736018,2645.5,2644.8,1.06081346]
[1646471191994,0.00290501,2645.1,2644.8,1.06081346]
[1646471192194,0.00290501,2645.1,2644.8,1.06379606]
[1646471192441,0.00290501,2645.1,2644.8,1.06081346]
[1646471192941,0.13736018,2645.5,2644.8,1.06081346]
[1646471193142,0.00290501,2645.1,2644.8,1.06379606]
[1646471193342,0.00290501,2645.1,2644.8,1.06081346]
[1646471194042,0.13736018,2645.5,2644.8,1.06081346]
[1646471194247,0.13736018,2645.5,2644.8,1.06379606]
[1646471194443,0.00281786,2645.1,2645.0,0.02629964]
[1646471195245,0.05786715,2645.4,2645.0,0.02629964]
[1646471195646,0.00281782,2645.2,2645.0,0.02629964]
[1646471196494,0.05786715,2645.4,2645.0,0.02629964]
[1646471196897,0.0028178,2645.2,2645.0,0.02629964]
[1646471197097,0.0028178,2645.2,2645.0,0.47829964]
[1646471197696,0.05786715,2645.4,2645.0,0.47829964]
[1646471197995,0.00268515,2645.2,2645.0,0.47829964]
[1646471198195,0.00268515,2645.2,2645.1,0.91036837]
[1646471198996,0.116103,2645.2,2645.1,0.91036837]
[1646471200139,0.10449271,2645.2,2645.1,1.28756837]
[1646471202648,0.10449271,2645.2,2645.1,0.91036837]
[1646471203448,0.10449271,2645.2,2645.0,0.02629964]
[1646471204699,0.16217897,2645.2,2644.8,0.0029826]
[1646471204897,0.16217897,2645.2,2644.7,1.02243082]
[1646471205297,0.16487687,2645.2,2644.7,1.02243082]
[1646471205899,0.16487687,2645.2,2644.8,0.07749376]
[1646471206099,0.16217897,2645.2,2644.8,0.07749376]
[1646471206504,0.00269796,2645.1,2644.8,0.07749376]
[1646471206904,0.15653393,2645.2,2644.9,2.5]
[1646471207105,0.15653393,2645.2,2645.1,1.11925102]
[1646471207740,0.15653393,2645.2,2645.1,1.64873786]
[1646471208339,0.15653393,2645.2,2645.1,2.02593786]
[1646471208740,0.11555341,2645.2,2645.1,2.02593786]
[1646471208940,0.04069729,2645.2,2645.1,13.58593786]
[1646471209141,0.06488386,2646.4,2645.1,13.58593786]
[1646471209340,0.06488386,2646.4,2645.2,14.11367944]
[1646471209341,1.51320158,2646.3,2645.2,14.11367944]
[1646471209542,1.51320158,2646.3,2645.4,0.3772]
[1646471209739,1.51320158,2646.3,2645.5,0.52948684]
[1646471209943,0.00166964,2645.9,2645.5,0.452]
[1646471210142,0.00166964,2645.9,2645.7,1.19334413]
[1646471210542,0.06488386,2646.4,2645.7,1.19334413]
[1646471210543,0.75626123,2646.4,2645.7,1.19334413]
[1646471211090,0.75626123,2646.4,2645.5,0.452]
[1646471211895,0.1889,2646.3,2645.6,0.9964436]
[1646471212296,0.88027737,2646.3,2645.6,0.9964436]
[1646471212899,0.88027737,2646.3,2645.5,0.452]
[1646471213097,0.06488386,2646.4,2645.5,0.452]
[1646471213098,0.94516123,2646.4,2645.5,0.452]
[1646471213297,0.69137737,2646.3,2645.5,0.452]
[1646471213497,0.94516123,2646.4,2645.5,0.452]
[1646471213901,0.94516123,2646.4,2645.5,1.32624461]
[1646471214197,0.07628998,2646.3,2645.8,0.02606454]
[1646471214868,0.00290641,2646.2,2645.8,0.02606454]
[1646471215664,0.07628998,2646.3,2645.8,0.02606454]
[1646471216065,0.00290643,2646.1,2645.8,0.02606454]
[1646471216464,0.6942838,2646.1,2645.8,0.02606454]
[1646471216863,0.69137737,2646.1,2645.8,0.02606454]
[1646471217065,1.8927531,2646.2,2645.8,0.02606454]
[1646471217363,0.00280836,2646.1,2645.8,0.02606454]
[1646471218164,0.69137737,2646.2,2645.8,0.02606454]
[1646471218365,0.00280836,2646.1,2645.8,0.02606454]
[1646471219193,0.00280836,2646.1,2645.5,3.5186397]
[1646471219394,0.11429314,2646.2,2645.5,3.5186397]
[1646471219594,0.00280836,2646.1,2645.5,3.5186397]
[1646471220493,0.11429314,2646.2,2645.5,3.5186397]
[1646471220896,0.00268733,2645.9,2645.5,3.5186397]
[1646471221896,0.00268735,2645.8,2645.5,3.5186397]
[1646471223044,4.30567051,2646.2,2645.5,1.86564039]
[1646471223045,0.69137737,2646.1,2645.5,1.86564039]
[1646471223241,0.00268732,2645.8,2645.4,0.02604158]
[1646471223641,0.00268732,2645.8,2645.4,3.01598955]
[1646471224043,0.00268732,2645.8,2645.5,3.00740575]
[1646471224242,0.80567051,2646.2,2645.5,3.00740575]
[1646471224442,0.80567051,2646.2,2645.6,0.02608749]
[1646471224443,0.00270095,2645.8,2645.6,0.02608749]
[1646471225444,0.74888831,2646.1,2645.6,0.02608749]
[1646471225642,0.00270101,2645.8,2645.6,0.02608749]
[1646471226497,0.05751094,2646.1,2645.6,0.02608749]
[1646471226696,0.74888831,2646.1,2645.6,0.02608749]
[1646471226897,0.00270101,2645.8,2645.6,0.02608749]
[1646471227697,0.05751094,2646.1,2645.6,0.02608749]
[1646471228101,0.00269901,2645.8,2645.6,0.02608749]
[1646471228897,0.74888831,2646.1,2645.6,0.02608749]
[1646471229098,0.05745826,2645.7,2645.6,0.02608749]
[1646471230265,0.00745826,2645.7,2645.6,0.02608749]
[1646471230461,1.49606002,2645.7,2645.6,0.10356263]
[1646471233368,1.49606002,2645.7,2645.6,0.99320478]
[1646471234195,1.53689799,2645.7,2645.6,0.99320478]
[1646471234996,1.53689799,2645.7,2645.6,13.38240478]
[1646471235196,0.04829623,2645.7,2645.6,16.41065132]
[1646471235396,0.04829623,2645.7,2645.6,17.41065132]
[1646471235600,0.04829623,2645.7,2645.6,17.98856222]
[1646471235799,0.04829623,2645.7,2645.6,6.05136222]
[1646471237345,0.69137737,2646.6,2645.6,6.05136222]
[1646471237346,0.68867821,2646.6,2645.7,3.9]
[1646471237545,0.68867821,2646.6,2645.8,3.15881808]
[1646471237749,0.68867821,2646.6,2645.9,3.12774511]
[1646471237947,0.68867821,2646.6,2645.7,0.452]
[1646471237948,0.68867821,2646.6,2646.0,3.10089665]
[1646471238148,0.68867821,2646.6,2646.1,0.07747514]
[1646471238752,0.00269903,2646.5,2646.1,0.07747514]
[1646471239150,1.49017727,2646.5,2646.1,0.07747514]
[1646471239348,1.48747824,2646.4,2646.1,0.07747514]
[1646471239549,1.48747824,2646.3,2646.1,0.07747514]
[1646471239749,0.1889,2646.8,2646.1,0.07747514]
[1646471239750,1.48747824,2646.2,2646.1,0.07747514]
[1646471239952,0.00166916,2646.4,2646.0,3.02342151]
[1646471240553,1.4891474,2646.4,2646.0,3.02342151]
[1646471240751,1.48747824,2646.3,2646.0,3.02342151]
[1646471240961,2.4128293,2646.7,2646.0,3.02342151]
[1646471240962,1.48747824,2646.2,2646.0,3.02342151]
[1646471241201,1.48747824,2646.1,2646.0,3.02342151]
[1646471241399,0.00166916,2646.3,2646.0,3.02342151]
[1646471242199,2.41343072,2646.5,2646.0,3.02342151]
[1646471242398,0.00290905,2646.3,2646.0,3.02342151]
[1646471242898,1.49038729,2646.3,2646.0,3.02342151]
[1646471243100,1.48747824,2646.2,2646.0,1.37066693]
[1646471243298,1.48747824,2646.1,2646.0,1.37066693]
[1646471246045,1.48747824,2646.1,2645.9,0.133805]
[1646471246245,1.48747824,2646.0,2645.9,0.133805]
[1646471246445,1.48747824,2646.0,2645.9,0.21999885]
[1646471246645,1.48747824,2646.0,2645.9,0.133805]
[1646471247646,1.48747824,2646.0,2645.9,0.22012791]
[1646471247847,1.48747824,2646.0,2645.9,0.133805]
[1646471248246,1.48747824,2646.0,2645.9,0.22012584]
[1646471248695,1.48747824,2646.0,2645.9,0.133805]
[1646471249093,1.48747824,2646.0,2645.9,0.22013548]
[1646471249694,2.56301144,2646.0,2645.9,0.22013548]
[1646471249893,2.56301144,2646.0,2645.9,0.133805]
[1646471250293,3.2569312,2646.0,2645.9,0.133805]
[1646471251093,2.181398,2646.0,2645.6,0.133805]
[1646471251300,1.48747824,2645.9,2645.6,0.133805]
[1646471251598,1.48747824,2645.8,2645.6,0.133805]
[1646471251796,1.48747824,2645.7,2645.6,0.133805]
[1646471251997,1.48747824,2645.7,2645.6,0.22116941]
[1646471252197,1.48747824,2645.7,2645.6,0.133805]
[1646471252443,1.48747824,2645.7,2645.6,0.22120918]
[1646471252942,1.48747824,2645.7,2645.6,0.08740418]
[1646471253144,1.48747824,2645.7,2645.2,0.09037546]
[1646471253343,1.48747824,2645.6,2645.2,0.08740418]
[1646471253542,1.48747824,2645.5,2645.2,0.09037546]
[1646471253744,1.48747824,2645.4,2645.2,0.08740418]
[1646471253947,0.00269192,2645.8,2645.2,0.08740418]
[1646471253948,1.48747824,2645.3,2645.2,0.08740418]
[1646471254744,1.28646924,2645.3,2645.2,0.08740418]
[1646471258902,1.1842,2645.8,2645.2,0.08740418]
[1646471259105,0.07936717,2645.3,2645.2,0.26263835]
[1646471263047,0.06989065,2645.3,2645.2,0.26263835]
[1646471264304,0.00278591,2645.8,2645.2,0.2457966]
[1646471264501,0.00278591,2645.8,2645.2,0.15839242]
[1646471264900,2.50707208,2646.0,2645.2,0.15839242]
[1646471265102,2.50707208,2646.0,2645.2,0.1613637]
[1646471265301,0.00269484,2645.8,2645.2,0.1613637]
[1646471265502,1.82971996,2645.8,2645.2,0.1613637]
[1646471265704,3.5,2645.7,2645.2,0.1613637]
[1646471265903,0.69391976,2645.4,2645.2,0.05190103]
[1646471266103,0.69391976,2645.3,2645.2,0.05190103]
[1646471266703,0.69391976,2645.4,2645.2,0.05190103]
[1646471268476,0.69391976,2645.5,2645.2,0.05190103]
[1646471269375,0.69391976,2645.5,2645.4,0.03155559]
[1646471269773,0.95740091,2645.4,2644.8,0.00297128]
[1646471269978,0.69391976,2645.5,2644.8,0.00297128]
[1646471270575,0.69391976,2645.6,2644.8,0.00297128]
[1646471271107,0.50125647,2645.7,2644.8,0.00297128]
[1646471271108,1.19517623,2645.7,2644.8,0.00297128]
[1646471271701,0.50125647,2645.7,2644.8,0.00297128]
[1646471271901,0.50125647,2645.7,2644.9,1.19396641]
[1646471271902,0.12405647,2645.7,2644.9,1.19396641]
[1646471272305,0.12405647,2645.7,2644.9,1.64596641]
[1646471273203,0.12405647,2645.7,2645.4,0.9026357]
[1646471273603,0.12405647,2645.7,2645.4,1.3546357]
[1646471274605,1.6927,2646.4,2645.4,1.3546357]
[1646471274606,0.10465477,2645.5,2645.4,1.3546357]
[1646471274845,0.10465477,2645.5,2645.4,1.43211567]
[1646471276252,1.57353812,2645.5,2645.4,0.52947997]
[1646471276654,0.10465477,2645.5,2645.4,0.52947997]
[1646471277753,0.10465477,2645.5,2645.4,1.5845576]
[1646471282946,0.0941893,2645.5,2645.4,1.5845576]
[1646471283746,0.0941893,2645.5,2645.4,0.52947997]
[1646471284149,1.57502379,2645.5,2645.4,0.52947997]
[1646471289413,1.52285746,2645.5,2645.4,0.55152222]
[1646471291851,0.0524895,2645.5,2645.4,0.55152222]
[1646471292051,0.0524895,2645.5,2645.4,1.11059534]
[1646471293697,0.0524895,2645.5,2645.4,4.54475483]
[1646471294705,1.52384314,2645.5,2645.4,4.54475483]
[1646471294900,7.402e-05,2645.6,2645.5,16.7372]
[1646471295101,7.402e-05,2645.6,2645.5,21.23925699]
[1646471295302,7.402e-05,2645.6,2645.5,22.23925699]
[1646471296100,7.402e-05,2645.6,2645.5,10.67925699]
[1646471296304,7.402e-05,2645.6,2645.5,9.70820174]
[1646471297347,7.402e-05,2645.6,2645.5,4.90820174]
[1646471299149,0.20683721,2645.6,2645.5,4.90820174]